fUST/lending_fUST_20240807
["ID","MTS","AMOUNT","RATE_DAILY","PERIOD"]
[334386849,1723018242457,-151.0,0.00032055,7]
[334386850,1723018242466,-4994.348331,0.000321,10]
[334386851,1723018242478,-296.0,0.0003257,28]
[334386852,1723018242487,-602.0,0.000327,2]
[334386853,1723018242496,-2000.0,0.00032766,2]
[334386854,1723018242505,-2361.91538437,0.00032766,5]
[334386855,1723018242514,-1893.6037661,0.00032776,2]
[334386856,1723018242523,-150.0,0.00032799,2]
[334386857,1723018242532,-183.0,0.000328,6]
[334386858,1723018242541,-3000.0,0.000328,13]
[334386859,1723018242550,-89635.48623394,0.000328,2]
[334386869,1723018243642,-680.54898449,0.00019547,2]
[334386870,1723018243653,-294.18278188,0.0002,2]
[334386871,1723018243663,-915.77591359,0.00021591,2]
[334386912,1723019213973,183.07679596,9.999e-05,2]
[334386913,1723019357919,494.3368924,0.0001212,2]
[334386914,1723019395604,231.23669746,0.0001212,2]
[334386942,1723019432681,-174.951672,0.00014247,2]
[334386943,1723019432691,-118.61512805,0.00014247,2]
[334386954,1723019438980,-63.32395895,0.00014247,2]
[334386955,1723019438995,-156.63892832,0.00014691,2]
[334386956,1723019439008,-1715.68394884,0.00015708,2]
[334386957,1723019439020,-300.0,0.00016488,2]
[334386958,1723019439034,-300.0,0.00016488,2]
[334386959,1723019439049,-452.02661759,0.00016489,2]
[334386960,1723019439061,-392.70085941,0.00016489,2]
[334386961,1723019439073,-500.0,0.00016489,2]
[334386962,1723019439086,-500.0,0.00016489,2]
[334386963,1723019439099,-351.34299284,0.00016489,2]
[334386964,1723019439113,-7622.37680522,0.0001649,2]
[334386965,1723019439136,-2941.24142081,0.0001649,2]
[334386969,1723019441051,-14336.38177397,0.0001649,2]
[334386970,1723019441062,-250.0,0.00017596,2]
[334386971,1723019441073,-250.0,0.00017644,2]
[334386972,1723019441084,-250.0,0.00017692,2]
[334386973,1723019441095,-250.0,0.0001774,2]
[334386974,1723019441106,-250.0,0.00017788,2]
[334386975,1723019441117,-250.0,0.00017837,2]
[334386976,1723019441129,-250.0,0.00017885,2]
[334386977,1723019441140,-250.0,0.00017933,2]
[334386978,1723019441151,-250.0,0.00017981,2]
[334386979,1723019441163,-154.82204733,0.00018,2]
[334386980,1723019441174,-285.0,0.00018018,2]
[334386981,1723019441185,-250.0,0.0001803,2]
[334386982,1723019441196,-250.0,0.00018078,2]
[334386983,1723019441208,-250.0,0.00018126,2]
[334386984,1723019441219,-250.0,0.00018174,2]
[334386985,1723019441229,-250.0,0.00018223,2]
[334386986,1723019441241,-250.0,0.00018271,2]
[334386987,1723019441252,-250.0,0.00018319,2]
[334386988,1723019441265,-250.0,0.00018367,2]
[334386989,1723019441275,-250.0,0.00018416,2]
[334386990,1723019441286,-2895.69071822,0.00018447,2]
[334386991,1723019441297,-250.0,0.00018464,2]
[334386992,1723019441307,-250.0,0.00018512,2]
[334386993,1723019441318,-250.0,0.00019041,2]
[334386994,1723019441329,-4320.83768352,0.00019167,2]
[334386995,1723019441341,-442.1913298,0.00019178,4]
[334386996,1723019441352,-601.0405866,0.00019451,2]
[334386997,1723019441362,-156.40122441,0.0002,2]
[334386998,1723019441373,-1444.11606649,0.0002,2]
[334386999,1723019441384,-173.053872,0.0002022,2]
[334387000,1723019441394,-181.939087,0.00020707,2]
[334387001,1723019441405,-3087.63872233,0.00020999,2]
[334387002,1723019441416,-194.58009581,0.00021011,2]
[334387003,1723019441428,-1500.0,0.00021011,2]
[334387004,1723019441439,-952.0855901,0.00021048,2]
[334387005,1723019441449,-209.25602359,0.00021048,2]
[334387006,1723019441460,-301.05042954,0.00021048,2]
[334387007,1723019441471,-154.71377951,0.0002142,2]
[334387008,1723019441482,-664.23911189,0.0002142,2]
[334387009,1723019441493,-253.57473726,0.0002142,2]
[334387010,1723019441503,-296.95255386,0.0002142,2]
[334387011,1723019441515,-174.54270234,0.0002142,2]
[334387012,1723019441525,-196.48473354,0.00021542,2]
[334387013,1723019441536,-157.85964427,0.00021542,2]
[334387014,1723019441550,-1450.10637504,0.00021542,2]
[334387015,1723019441563,-4182.56716442,0.00021591,2]
[334387016,1723019441574,-10488.56500567,0.00021591,2]
[334387017,1723019441584,-1626.30244547,0.00021591,2]
[334387018,1723019441595,-572.61,0.00021599,3]
[334387019,1723019441606,-286.31,0.00021599,3]
[334387020,1723019441616,-858.94,0.00021599,3]
[334387021,1723019441628,-492.40339763,0.00021602,2]
[334387022,1723019441639,-1991.65402436,0.00021602,2]
[334387023,1723019441650,-2139.49023769,0.00021602,2]
[334387024,1723019441661,-26095.48508972,0.00021602,2]
[334387025,1723019441671,-221.94546567,0.00021608,2]
[334387026,1723019441683,-198.23535734,0.00021608,2]
[334387027,1723019441694,-500.0,0.00021608,2]
[334387028,1723019441705,-500.0,0.00021608,2]
[334387029,1723019441716,-500.0,0.00021608,2]
[334387030,1723019441727,-500.0,0.00021608,2]
[334387031,1723019441738,-500.0,0.00021608,2]
[334387032,1723019441749,-500.0,0.00021608,2]
[334387033,1723019441762,-278.68845463,0.00021608,2]
[334387034,1723019441772,-500.0,0.00021608,2]
[334387035,1723019441783,-500.0,0.00021608,2]
[334387036,1723019441801,-500.0,0.00021608,2]
[334387037,1723019441811,-500.0,0.00021608,2]
[334387038,1723019441822,-7002.81077238,0.00021609,2]
[334387039,1723019441833,-738.04892902,0.00021609,2]
[334387040,1723019441844,-165.56810844,0.00021609,2]
[334387041,1723019441855,-2278.51525994,0.00021609,3]
[334387042,1723019441866,-1763.75242219,0.00021609,2]
[334387043,1723019441876,-22104.1089418,0.00021632,3]
[334387044,1723019441889,-1109.04434069,0.00021632,2]
[334387045,1723019441901,-1325.23443944,0.00021632,2]
[334387046,1723019441912,-9110.76868748,0.00021632,2]
[334387047,1723019441923,-925.55747197,0.00021805,2]
[334387048,1723019441935,-807.68900344,0.00021805,2]
[334387049,1723019441946,-3247.17438178,0.00021896,3]
[334387056,1723019446824,-173.817914,0.00020656,2]
[334387057,1723019446835,-154.71377951,0.00021048,2]
[334387058,1723019446844,-154.71377951,0.00021048,2]
[334387059,1723019446855,-426.85877147,0.0002142,2]
[334387060,1723019446866,-18856.93456002,0.00021896,3]
[334387061,1723019446876,-2184.8549589,0.00021906,2]
[334387062,1723019446887,-21904.53468543,0.00021916,2]
[334387063,1723019446896,-160.54991199,0.00022,2]
[334387064,1723019446905,-836.10038637,0.0002268,2]
[334387065,1723019446914,-1145.22,0.00022969,3]
[334387066,1723019446925,-572.62,0.00022969,3]
[334387067,1723019446935,-239.15511998,0.00023,2]
[334387068,1723019446944,-1096.05831836,0.00023,2]
[334387069,1723019446953,-200.0,0.00023,2]
[334387070,1723019446965,-630.80501932,0.00023814,2]
[334387071,1723019446988,-154.7215013,0.00024,2]
[334387072,1723019447000,-1450.10637501,0.00024349,2]
[334387073,1723019447012,-380.0,0.00024658,2]
[334387074,1723019447021,-200.0,0.00024658,15]
[334387075,1723019447031,-402.49527553,0.00025,2]
[334387076,1723019447040,-309.19612785,0.00025,2]
[334387077,1723019447050,-4117.75509987,0.00025,30]
[334387078,1723019447060,-8722.2767903,0.00025,2]
[334387079,1723019447070,-620.54025097,0.00025005,2]
[334387080,1723019447079,-189.59399032,0.0002617,2]
[334387081,1723019447089,-620.02701255,0.00026255,2]
[334387082,1723019447099,-1363.69574407,0.00026375,2]
[334387083,1723019447108,-1363.69574407,0.00026375,2]
[334387084,1723019447118,-1450.10637501,0.00027156,2]
[334387085,1723019447127,-181.939087,0.00027167,2]
[334387086,1723019447137,-305.60627343,0.0002739,2]
[334387087,1723019447146,-4817.16,0.00028,96]
[334387088,1723019447156,-22104.1089418,0.00028757,3]
[334387089,1723019447166,-500.0,0.00028767,2]
[334387090,1723019447176,-500.0,0.00028767,2]
[334387091,1723019447187,-500.0,0.00028767,2]
[334387092,1723019447198,-500.0,0.00028767,2]
[334387093,1723019447209,-500.0,0.00028767,2]
[334387094,1723019447221,-500.0,0.00028767,2]
[334387095,1723019447232,-500.0,0.00028767,2]
[334387096,1723019447242,-500.0,0.00028767,2]
[334387097,1723019447253,-500.0,0.00028767,2]
[334387098,1723019447265,-500.0,0.00028767,2]
[334387099,1723019447276,-500.0,0.00028767,2]
[334387100,1723019447285,-500.0,0.00028767,2]
[334387101,1723019447296,-500.0,0.00028767,2]
[334387102,1723019447306,-500.0,0.00028767,2]
[334387103,1723019447315,-500.0,0.00028767,2]
[334387104,1723019447324,-500.0,0.00028767,2]
[334387105,1723019447333,-500.0,0.00028767,2]
[334387106,1723019447343,-500.0,0.00028767,2]
[334387107,1723019447353,-500.0,0.00028767,2]
[334387108,1723019447363,-500.0,0.00028767,2]
[334387109,1723019447375,-500.0,0.00028767,2]
[334387110,1723019447388,-500.0,0.00028767,2]
[334387111,1723019447400,-500.0,0.00028767,2]
[334387112,1723019447409,-500.0,0.00028767,2]
[334387113,1723019447420,-449.61944972,0.00028767,2]
[334387114,1723019447431,-500.0,0.00028767,2]
[334387115,1723019447442,-500.0,0.00028767,2]
[334387116,1723019447455,-500.0,0.00028767,2]
[334387117,1723019447466,-500.0,0.00028767,2]
[334387118,1723019447476,-300.0,0.00028767,2]
[334387119,1723019447486,-150.0,0.00029937,2]
[334387120,1723019447495,-507.0,0.00029937,2]
[334387121,1723019447505,-1411.0,0.00029937,2]
[334387122,1723019447515,-1450.10637501,0.00029963,2]
[334387123,1723019447525,-300.0,0.0003,2]
[334387124,1723019447535,-154.71377951,0.0003,2]
[334387125,1723019447544,-240.0,0.0003,2]
[334387126,1723019447554,-232.0,0.0003,2]
[334387127,1723019447563,-999.47999369,0.00030182,2]
[334387128,1723019447573,-300.0,0.00030411,2]
[334387129,1723019447583,-232.0,0.00030411,2]
[334387130,1723019447593,-151.0,0.00030527,6]
[334387131,1723019447602,-207.1149566,0.00031229,2]
[334387132,1723019447612,-164.77452507,0.00031507,120]
[334387134,1723019531048,311.63326002,9.999e-05,2]
[334387135,1723019549296,-259.005231,0.00031507,120]
[334387136,1723019559063,600.71674289,9.999e-05,2]
[334387139,1723019792189,2278.51525994,0.0001212,3]
[334387140,1723019797542,165.56810844,0.0001212,2]
[334387141,1723019800613,1763.75242219,0.0001212,2]
[334387142,1723019803998,738.04892902,0.0001212,2]
[334387143,1723019822266,1500.0,0.0001212,2]
[334387144,1723019824300,7002.81077238,0.0001212,2]
[334387145,1723019861700,263.9,0.0003,120]
[334387146,1723019934159,259.005231,0.00031507,120]
[334387149,1723020125986,21000.0,0.0003441,120]
[334387199,1723020415146,-174.951672,0.00014247,2]
[334387200,1723020415171,-57.91948681,0.00014247,2]
[334387203,1723020490832,14277.78470826,0.0003441,120]
[334387204,1723020513220,194.253923,0.00031507,120]
[334387205,1723020553245,95746.05090674,0.00034417,120]
[334387212,1723020575714,254.076584,0.00013714,2]
[334387292,1723020638202,-105.82569119,0.00014247,2]
[334387293,1723020638220,-300.0,0.00014573,2]
[334387294,1723020638230,-285.0,0.00014573,2]
[334387295,1723020638241,-24900.0,0.00014574,2]
[334387296,1723020638254,-253.20793871,0.00014591,2]
[334387297,1723020638265,-10076.28345924,0.00014691,2]
[334387298,1723020638275,-1728.20194205,0.000149,2]
[334387299,1723020638285,-951.6611269,0.00015,2]
[334387300,1723020638295,-250.0,0.00015636,2]
[334387301,1723020638304,-250.0,0.00015677,2]
[334387302,1723020638315,-250.0,0.00015719,2]
[334387303,1723020638326,-250.0,0.00015761,2]
[334387304,1723020638338,-250.0,0.00015802,2]
[334387305,1723020638348,-250.0,0.00015844,2]
[334387306,1723020638358,-250.0,0.00015886,2]
[334387307,1723020638367,-250.0,0.00015928,2]
[334387308,1723020638376,-250.0,0.00015969,2]
[334387309,1723020638385,-250.0,0.00016011,2]
[334387310,1723020638394,-420.0,0.0001603,2]
[334387311,1723020638405,-587.0,0.00017633,2]
[334387312,1723020638415,-154.82204733,0.00018,2]
[334387313,1723020638426,-1728.20194202,0.0001808,2]
[334387314,1723020638436,-250.0,0.00019041,2]
[334387315,1723020638448,-9110.76868748,0.00019139,2]
[334387316,1723020638468,-6057.6610635,0.00019177,2]
[334387317,1723020638477,-173.053872,0.00019178,2]
[334387318,1723020638487,-442.1913298,0.00019178,4]
[334387319,1723020638497,-173.053872,0.00019178,2]
[334387320,1723020638507,-2139.82745581,0.00019256,2]
[334387321,1723020638516,-1325.23443944,0.00019256,2]
[334387322,1723020638526,-823.0,0.00019397,2]
[334387323,1723020638536,-1109.04434069,0.00019477,2]
[334387324,1723020638546,-925.55747197,0.00019477,2]
[334387325,1723020638556,-156.35315554,0.0002,2]
[334387326,1723020638566,-163.745178,0.00020707,2]
[334387327,1723020638576,-154.85293282,0.00021011,2]
[334387328,1723020638585,-4320.83768352,0.00021011,2]
[334387329,1723020638597,-154.85293282,0.00021011,2]
[334387330,1723020638607,-492.40339763,0.00021011,2]
[334387331,1723020638617,-1152.0,0.00021336,2]
[334387332,1723020638626,-196.48473354,0.0002142,2]
[334387333,1723020638636,-301.05042954,0.0002142,2]
[334387334,1723020638645,-174.54270234,0.0002142,2]
[334387335,1723020638655,-601.0405866,0.0002142,2]
[334387336,1723020638664,-194.58009581,0.0002142,2]
[334387337,1723020638674,-253.57473726,0.0002142,2]
[334387338,1723020638683,-296.95255386,0.0002142,2]
[334387339,1723020638693,-664.23911189,0.0002142,2]
[334387340,1723020638703,-1398.21083755,0.00021492,2]
[334387341,1723020638714,-221.94546567,0.00021531,2]
[334387342,1723020638725,-198.23535734,0.00021531,2]
[334387344,1723020638736,-500.0,0.00021531,2]
[334387346,1723020638747,-500.0,0.00021531,2]
[334387347,1723020638758,-500.0,0.00021531,2]
[334387348,1723020638767,-500.0,0.00021531,2]
[334387349,1723020638778,-500.0,0.00021531,2]
[334387350,1723020638788,-283.60653639,0.00021531,2]
[334387351,1723020638798,-3087.63872233,0.00021532,2]
[334387352,1723020638809,-1500.0,0.00021532,2]
[334387353,1723020638820,-26095.48508972,0.00021532,2]
[334387354,1723020639054,-1991.65402436,0.00021542,2]
[334387355,1723020639064,-277.18370616,0.00021589,2]
[334387356,1723020639074,-286.31,0.00021592,3]
[334387357,1723020639083,-858.93,0.00021592,3]
[334387358,1723020639093,-807.68900344,0.00021805,2]
[334387359,1723020639103,-160.81781734,0.00021805,2]
[334387360,1723020639113,-632.66427216,0.00022915,2]
[334387361,1723020639123,-572.62,0.00022962,3]
[334387362,1723020639133,-1613.0,0.0002347,2]
[334387363,1723020639144,-154.71377951,0.00024,2]
[334387364,1723020639154,-620.63321361,0.0002406,2]
[334387365,1723020639164,-1398.21083752,0.00024312,2]
[334387366,1723020639179,-200.0,0.00024658,2]
[334387367,1723020639188,-200.0,0.00024658,15]
[334387368,1723020639197,-154.77557542,0.00025,2]
[334387369,1723020639209,-1363.69574407,0.00025,2]
[334387370,1723020639218,-402.49527553,0.00025,2]
[334387371,1723020639228,-191.07687744,0.00025,2]
[334387372,1723020639237,-194.56220442,0.00025,2]
[334387373,1723020639248,-180.55208415,0.00025,2]
[334387374,1723020639257,-189.59399032,0.00025,2]
[334387375,1723020639266,-620.03166068,0.00025263,2]
[334387376,1723020639275,-1776.0,0.00025817,2]
[334387377,1723020639285,-881.79875023,0.00026163,2]
[334387378,1723020639294,-160.61263926,0.00026769,2]
[334387379,1723020639305,-1398.21083752,0.00027131,2]
[334387380,1723020639316,-163.745178,0.00027167,2]
[334387381,1723020639328,-305.60627343,0.0002739,2]
[334387382,1723020639338,-154.98358091,0.00027396,2]
[334387384,1723020639348,-207.68617317,0.00027397,2]
[334387385,1723020639357,-170.6055475,0.00028493,2]
[334387386,1723020639367,-851.85,0.00028747,3]
[334387387,1723020639377,-22717.5088366,0.00028757,3]
[334387388,1723020639387,-500.0,0.00028767,2]
[334387389,1723020639397,-500.0,0.00028767,2]
[334387390,1723020639408,-500.0,0.00028767,2]
[334387391,1723020639418,-174.96194498,0.00028767,2]
[334387392,1723020639427,-1398.21083752,0.00029951,2]
[334387393,1723020639437,-154.71377951,0.0003,2]
[334387394,1723020639446,-150.112233,0.0003,9]
[334387395,1723020639458,-225.0,0.0003,2]
[334387396,1723020639468,-213.0,0.0003,2]
[334387397,1723020639479,-68409.00216078,0.0003,2]
[334387399,1723020639489,-174.0,0.0003,2]
[334387400,1723020639499,-402.76742375,0.00030137,60]
[334387401,1723020639509,-225.0,0.00030411,2]
[334387402,1723020639519,-174.0,0.00030411,2]
[334387403,1723020639529,-151.0,0.00030535,6]
[334387404,1723020639539,-151.486,0.0003056,2]
[334387405,1723020639548,-507.0,0.0003056,2]
[334387406,1723020639557,-1411.0,0.0003056,2]
[334387407,1723020639566,-237.976,0.0003056,2]
[334387408,1723020639576,-150.112233,0.000307,7]
[334387409,1723020639586,-153.0,0.00030719,2]
[334387410,1723020639595,-153.0,0.00030719,2]
[334387411,1723020639605,-153.0,0.00030719,2]
[334387412,1723020639614,-153.0,0.00030719,2]
[334387413,1723020639624,-153.0,0.00030719,2]
[334387414,1723020639633,-150.55785057,0.00030762,2]
[334387415,1723020639642,-4689.31553251,0.00031119,2]
[334387416,1723020639651,-271.4386735,0.00031229,2]
[334387417,1723020639660,-271.4386735,0.00031229,2]
[334387418,1723020639670,-150.112233,0.000314,6]
[334387419,1723020639679,-2185.05127031,0.00031507,4]
[334387420,1723020639689,-225.0,0.00031644,2]
[334387422,1723020639701,-174.0,0.00031644,2]
[334387423,1723020639712,-451.84605212,0.00032,30]
[334387424,1723020639721,-1000.0,0.00032,32]
[334387425,1723020639731,-4772.79286968,0.00032,30]
[334387426,1723020639741,-7729.0,0.00032,10]
[334387427,1723020639752,-153.2214191,0.00032089,2]
[334387428,1723020639762,-153.0,0.00032089,2]
[334387429,1723020639772,-153.0,0.00032089,2]
[334387430,1723020639782,-153.0,0.00032089,2]
[334387431,1723020639791,-514.9643628,0.00032089,2]
[334387432,1723020639800,-150.0,0.000321,10]
[334387433,1723020639809,-151.0,0.000321,7]
[334387434,1723020639818,-151.0,0.000321,7]
[334387435,1723020639827,-150.112233,0.000322,5]
[334387436,1723020639836,-12007.69153083,0.000327,4]
[334387437,1723020639846,-45435.0176732,0.00032745,4]
[334387438,1723020639855,-22717.5088366,0.00032755,4]
[334387439,1723020639864,-31516.68921193,0.00032765,21]
[334387440,1723020639873,-20246.64970259,0.00032765,21]
[334387441,1723020639882,-48899.76078811,0.00032765,5]
[334387457,1723020640586,-209.25602359,0.0002142,2]
[334387459,1723020640596,-12015.13502604,0.00032765,5]
[334387461,1723020640608,-11410.0,0.00032765,5]
[334387464,1723020640621,-9892.49718418,0.00032765,5]
[334387467,1723020640642,-377.35956123,0.00032765,5]
[334387481,1723020640770,-1728.20194202,0.0002126,2]
[334387483,1723020640779,-410.96627292,0.00032765,5]
[334387485,1723020640791,-5882.28116752,0.00032765,5]
[334387487,1723020640800,-1398.21083752,0.0003277,2]
[334387488,1723020640809,-2737.45529379,0.0003277,2]
[334387489,1723020640818,-22717.5088366,0.0003279,4]
[334387490,1723020640827,-97774.19038019,0.000328,2]
[334387677,1723020642877,-207.65481,0.00026688,2]
[334387679,1723020642886,-207.65481,0.00026761,2]
[334387681,1723020642896,-207.65481,0.00026835,2]
[334387683,1723020642906,-207.65481,0.00026908,2]
[334387685,1723020642915,-207.65481,0.00026981,2]
[334387687,1723020642925,-207.65481,0.00027054,2]
[334387688,1723020642934,-4811.7322035,0.000328,2]
[334387692,1723020643232,-25.8745732,0.000328,2]
[334387707,1723020880543,2278.01854997,0.00016095,3]
[334387708,1723020923763,451.84605212,0.00027,120]
[334387813,1723021590689,183.12142007,9.999e-05,2]
[334387847,1723021832829,-226.34302,0.00014247,2]
[334387848,1723021832841,-250.0,0.00014784,2]
[334387849,1723021832853,-250.0,0.00014825,2]
[334387850,1723021832865,-250.0,0.00014865,2]
[334387851,1723021832877,-250.0,0.00014906,2]
[334387852,1723021832888,-250.0,0.00014946,2]
[334387854,1723021832900,-250.0,0.00014987,2]
[334387855,1723021832913,-492.40339763,0.00015,2]
[334387856,1723021832924,-250.0,0.00015027,2]
[334387857,1723021832935,-250.0,0.00015068,2]
[334387858,1723021832949,-250.0,0.00015108,2]
[334387859,1723021832961,-250.0,0.00015149,2]
[334387860,1723021832973,-250.0,0.00015189,2]
[334387861,1723021832986,-238.665543,0.00015197,2]
[334387862,1723021832999,-250.0,0.0001523,2]
[334387863,1723021833011,-250.0,0.00015271,2]
[334387864,1723021833031,-250.0,0.00015311,2]
[334387865,1723021833043,-250.0,0.00015352,2]
[334387866,1723021833055,-250.0,0.00015392,2]
[334387867,1723021833068,-250.0,0.00015433,2]
[334387868,1723021833080,-250.0,0.00015473,2]
[334387869,1723021833091,-250.0,0.00015514,2]
[334387870,1723021833103,-250.0,0.00015554,2]
[334387871,1723021833115,-1792.92499048,0.00015608,2]
[334387872,1723021833127,-300.0,0.00015608,2]
[334387873,1723021833139,-613.3588452,0.00015673,2]
[334387874,1723021833153,-24900.0,0.00015674,2]
[334387875,1723021833165,-1794.59755427,0.00015708,2]
[334387876,1723021833176,-2139.82745581,0.00015708,2]
[334387877,1723021833188,-3975.57262652,0.00015708,2]
[334387878,1723021833200,-2163.23532979,0.00015708,2]
[334387879,1723021833212,-7001.77703298,0.00015708,2]
[334387880,1723021833225,-420.0,0.00017169,2]
[334387881,1723021833237,-1792.92499043,0.00018569,2]
[334387882,1723021833250,-587.0,0.00018886,2]
[334387883,1723021833262,-26095.48508972,0.00018979,2]
[334387884,1723021833281,-250.0,0.00019041,2]
[334387885,1723021833295,-168.773925,0.00019178,2]
[334387886,1723021833306,-952.0855901,0.00019451,2]
[334387887,1723021833318,-154.883763,0.00019999,2]
[334387888,1723021833328,-1626.30244547,0.0002,2]
[334387889,1723021833338,-156.40122441,0.0002,2]
[334387890,1723021833347,-226.34302,0.00020707,2]
[334387891,1723021833357,-823.0,0.00020774,2]
[334387892,1723021833366,-4320.83768352,0.00020999,2]
[334387893,1723021833376,-277.18370616,0.00020999,2]
[334387894,1723021833386,-664.23911189,0.00020999,2]
[334387895,1723021833396,-1500.0,0.00020999,2]
[334387896,1723021833406,-253.57473726,0.00021011,2]
[334387897,1723021833416,-194.58009581,0.00021011,2]
[334387898,1723021833426,-1325.23443944,0.00021011,2]
[334387918,1723021833756,-1109.04434069,0.00021011,2]
[334387923,1723021833796,-196.48473354,0.00021048,2]
[334387925,1723021833809,-601.0405866,0.00021048,2]
[334387927,1723021833819,-296.95255386,0.0002142,2]
[334387929,1723021833828,-807.68900344,0.0002142,2]
[334387931,1723021833837,-3966.67252041,0.0002152,2]
[334387933,1723021833847,-286.31,0.00021521,3]
[334387935,1723021833857,-572.62,0.00021521,3]
[334387937,1723021833872,-198.23535734,0.0002153,2]
[334387939,1723021833881,-500.0,0.0002153,2]
[334387941,1723021833892,-221.94546567,0.0002153,2]
[334387943,1723021833901,-500.0,0.0002153,2]
[334387945,1723021833911,-500.0,0.0002153,2]
[334387947,1723021833920,-500.0,0.0002153,2]
[334387949,1723021833931,-500.0,0.0002153,2]
[334387951,1723021833940,-500.0,0.0002153,2]
[334387953,1723021833950,-500.0,0.0002153,2]
[334387955,1723021833959,-1792.92499043,0.00021531,2]
[334387957,1723021833970,-36579.1996905,0.00021532,3]
[334387959,1723021833979,-1444.11606649,0.00021532,2]
[334387961,1723021833989,-3087.63872233,0.00021532,2]
[334387963,1723021833999,-301.05042954,0.00021591,2]
[334387965,1723021834008,-154.66746495,0.00021599,2]
[334387967,1723021834018,-154.66746495,0.00021599,2]
[334387969,1723021834038,-154.68290005,0.00021602,2]
[334387971,1723021834047,-154.66746495,0.00021602,2]
[334387973,1723021834056,-154.68290005,0.00021609,2]
[334387975,1723021834065,-858.93,0.00021611,3]
[334387977,1723021834075,-314.01296146,0.00021632,2]
[334387979,1723021834085,-154.66910747,0.00021642,4]
[334387981,1723021834094,-160.81781734,0.00021642,2]
[334387983,1723021834103,-157.85964427,0.00021805,2]
[334387985,1723021834112,-264.46620809,0.00022,2]
[334387986,1723021834121,-302.36509981,0.00022,2]
[334387988,1723021834130,-302.36509981,0.00022,2]
[334387990,1723021834139,-302.36509981,0.0002222,2]
[334387992,1723021834149,-302.54617483,0.0002222,2]
[334387994,1723021834158,-302.36509981,0.0002244,2]
[334387996,1723021834167,-157.41032459,0.0002266,2]
[334387998,1723021834176,-1152.0,0.00022852,2]
[334388000,1723021834185,-632.66427216,0.00022915,2]
[334388002,1723021834197,-397.82,0.00023035,2]
[334388004,1723021834208,-154.74467129,0.00024,2]
[334388006,1723021834218,-620.63321361,0.0002406,2]
[334388008,1723021834228,-3966.67252037,0.00024238,2]
[334388010,1723021834237,-1792.92499043,0.00024492,2]
[334388012,1723021834248,-380.0,0.00024658,2]
[334388013,1723021834258,-200.0,0.00024658,2]
[334388014,1723021834267,-200.0,0.00024658,15]
[334388015,1723021834277,-154.96683326,0.00025,2]
[334388016,1723021834288,-1363.69574407,0.00025,2]
[334388017,1723021834298,-191.07687744,0.00025,2]
[334388018,1723021834308,-1613.0,0.00025137,2]
[334388019,1723021834318,-620.03166068,0.00025263,2]
[334388020,1723021834327,-151.0,0.00025916,3]
[334388021,1723021834336,-881.79875023,0.00026037,2]
[334388022,1723021834346,-402.49527553,0.00026569,2]
[334388023,1723021834356,-163.734844,0.00026649,2]
[334388024,1723021834365,-160.61263926,0.00026719,2]
[334388025,1723021834376,-150.112233,0.000269,8]
[334388026,1723021834386,-3966.67252037,0.00026955,2]
[334388027,1723021834396,-36579.1996905,0.0002699,3]
[334388028,1723021834406,-4182.56716442,0.00027,2]
[334388029,1723021834416,-10488.56500567,0.00027,2]
[334388030,1723021834427,-9421.35258831,0.00027,2]
[334388031,1723021834436,-194.56220442,0.00027,2]
[334388032,1723021834447,-189.59399032,0.00027,2]
[334388033,1723021834457,-556.13837088,0.00027,14]
[334388034,1723021834466,-180.55208415,0.00027,2]
[334388035,1723021834476,-226.34302,0.00027167,2]
[334388036,1723021834485,-305.60627343,0.00027396,2]
[334388037,1723021834495,-207.68617317,0.00027397,2]
[334388038,1723021834507,-1792.92499043,0.00027454,2]
[334388039,1723021834516,-151.0,0.00027471,4]